bitfinex/quotes_BTCUSD_20240723
["timestamp","ask_amount","ask_price","bid_price","bid_amount"]
[1721700490130,1.20631855,67640.0,67639.0,0.012924]
[1721700490434,1.20631855,67640.0,67639.0,0.000924]
[1721700490435,1.20531855,67640.0,67639.0,0.000924]
[1721700490638,1.20531855,67640.0,67639.0,0.010924]
[1721700490859,1.20731855,67640.0,67639.0,0.019924]
[1721700491075,1.20631855,67640.0,67639.0,0.009924]
[1721700491276,1.20631855,67640.0,67639.0,0.000924]
[1721700491505,1.20631855,67640.0,67639.0,0.012924]
[1721700492642,1.20531855,67640.0,67639.0,0.002924]
[1721700492843,1.20631855,67640.0,67639.0,0.002924]
[1721700493136,1.20731855,67640.0,67639.0,0.000924]
[1721700493397,1.20631855,67640.0,67639.0,0.000924]
[1721700493635,1.20748743,67640.0,67639.0,0.002924]
[1721700493811,1.20648743,67640.0,67639.0,0.002924]
[1721700494252,1.20748743,67640.0,67639.0,0.002924]
[1721700494580,1.20648743,67640.0,67639.0,0.002924]
[1721700495777,1.20748743,67640.0,67639.0,0.014924]
[1721700496474,1.10718064,67640.0,67639.0,0.014924]
[1721700496717,1.35719068,67640.0,67639.0,0.014924]
[1721700497501,1.65287368,67640.0,67639.0,0.014924]
[1721700499686,1.65250811,67640.0,67639.0,0.014924]
[1721700499975,1.40286364,67640.0,67639.0,0.014924]
[1721700500195,1.65249393,67640.0,67639.0,0.014924]
[1721700501180,1.50290281,67640.0,67639.0,0.014924]
[1721700502781,1.50301763,67640.0,67639.0,0.014924]
[1721700505947,1.50287627,67640.0,67639.0,0.014924]
[1721700508961,1.50321506,67640.0,67639.0,0.014924]
[1721700509370,1.5032155,67640.0,67639.0,0.014924]
[1721700510423,1.65288769,67640.0,67639.0,0.014924]
[1721700511182,1.503318,67640.0,67639.0,0.014924]
[1721700511736,1.40286364,67640.0,67639.0,0.014924]
[1721700511871,1.50335234,67640.0,67639.0,0.014924]
[1721700512549,1.20766934,67640.0,67639.0,0.014924]
[1721700514809,1.34001395,67640.0,67639.0,0.014924]
[1721700515008,1.7826596,67640.0,67639.0,0.014924]
[1721700515192,1.78270339,67640.0,67639.0,0.014924]
[1721700516099,1.48702039,67640.0,67639.0,0.014924]
[1721700516871,1.34005774,67640.0,67639.0,0.014924]
[1721700517076,1.63574074,67640.0,67639.0,0.014924]
[1721700517224,1.34005774,67640.0,67639.0,0.014924]
[1721700518063,1.10718064,67640.0,67639.0,0.014924]
[1721700518266,1.34112186,67640.0,67639.0,0.014924]
[1721700518410,1.10718064,67640.0,67639.0,0.014924]
[1721700518616,1.34112186,67640.0,67639.0,0.014924]
[1721700518933,1.49074241,67640.0,67639.0,0.014924]
[1721700519131,1.49074332,67640.0,67639.0,0.014924]
[1721700519309,1.49075081,67640.0,67639.0,0.014924]
[1721700519511,1.34112186,67640.0,67639.0,0.014924]
[1721700519734,1.27552186,67640.0,67639.0,0.014924]
[1721700519934,1.42515081,67640.0,67639.0,0.014924]
[1721700520111,1.27552186,67640.0,67639.0,0.014924]
[1721700520997,1.42516862,67640.0,67639.0,0.014924]
[1721700521201,1.19123826,67640.0,67639.0,0.014924]
[1721700521404,1.42491732,67640.0,67639.0,0.014924]
[1721700521591,1.27525832,67640.0,67639.0,0.014924]
[1721700521953,1.57094132,67640.0,67639.0,0.014924]
[1721700522158,1.42222097,67640.0,67639.0,0.014924]
[1721700523037,1.71790397,67640.0,67639.0,0.014924]
[1721700523241,1.42222097,67640.0,67639.0,0.014924]
[1721700523986,1.27525832,67640.0,67639.0,0.014924]
[1721700524213,1.04158064,67640.0,67639.0,0.014924]
[1721700524409,1.27509912,67640.0,67639.0,0.014924]
[1721700525787,1.57078212,67640.0,67639.0,0.014924]
[1721700526069,1.27509912,67640.0,67639.0,0.014924]
[1721700526206,1.57078212,67640.0,67639.0,0.014924]
[1721700527471,1.57052951,67640.0,67639.0,0.014924]
[1721700527974,1.57052939,67640.0,67639.0,0.014924]
[1721700530230,1.71749204,67640.0,67639.0,0.014924]
[1721700530467,1.57052939,67640.0,67639.0,0.014924]
[1721700530657,1.57084147,67640.0,67639.0,0.014924]
[1721700532838,1.67084147,67640.0,67639.0,0.014924]
[1721700533158,1.62084147,67640.0,67639.0,0.014924]
[1721700533665,1.38726364,67640.0,67639.0,0.014924]
[1721700533802,1.88074485,67640.0,67639.0,0.014924]
[1721700534002,1.83074485,67640.0,67639.0,0.014924]
[1721700534546,1.88074485,67640.0,67639.0,0.014924]
[1721700534759,2.38242785,67640.0,67639.0,0.014924]
[1721700534985,2.48242785,67640.0,67639.0,0.014924]
[1721700535648,2.84375529,67640.0,67639.0,0.014924]
[1721700536046,2.84375529,67640.0,67639.0,0.012924]
[1721700536047,2.84275529,67640.0,67639.0,0.012924]
[1721700536271,2.84275529,67640.0,67639.0,0.01586559]
[1721700536423,2.84175529,67640.0,67639.0,0.00386559]
[1721700536636,2.84339041,67640.0,67639.0,0.00386559]
[1721700536836,2.84539041,67640.0,67639.0,0.00086559]
[1721700537171,2.40439546,67640.0,67639.0,0.00086559]
[1721700537377,2.36175102,67640.0,67639.0,0.00086559]
[1721700537506,2.65943402,67640.0,67639.0,0.00086559]
[1721700537710,2.70207846,67640.0,67639.0,0.00086559]
[1721700538755,2.40639546,67640.0,67639.0,0.00086559]
[1721700539082,2.36375102,67640.0,67639.0,0.00086559]
[1721700539630,2.36363835,67640.0,67639.0,0.00086559]
[1721700540016,2.14063835,67640.0,67639.0,0.00086559]
[1721700540226,2.05423835,67640.0,67639.0,0.00086559]
[1721700540639,1.68325535,67640.0,67639.0,0.00086559]
[1721700540843,1.93325535,67640.0,67639.0,0.00086559]
[1721700541883,2.11231053,67640.0,67639.0,0.00086559]
[1721700542088,2.35535435,67640.0,67639.0,0.00086559]
[1721700542268,2.57366321,67640.0,67639.0,0.00086559]
[1721700542673,2.35535435,67640.0,67639.0,0.00086559]
[1721700542876,2.86934333,67640.0,67639.0,0.00086559]
[1721700543327,2.57366033,67640.0,67639.0,0.00086559]
[1721700543536,2.65103735,67640.0,67639.0,0.00086559]
[1721700543750,2.35535435,67640.0,67639.0,0.00086559]
[1721700543960,2.65103735,67640.0,67639.0,0.00086559]
[1721700544165,2.86934333,67640.0,67639.0,0.00086559]
[1721700544376,2.65103735,67640.0,67639.0,0.00086559]
[1721700544581,2.35535435,67640.0,67639.0,0.00086559]
[1721700544980,2.65146832,67640.0,67639.0,0.00086559]
[1721700545179,2.35578532,67640.0,67639.0,0.00086559]
[1721700545405,2.65146832,67640.0,67639.0,0.00086559]
[1721700546411,2.30385717,67640.0,67639.0,0.00086559]
[1721700547149,2.59954017,67640.0,67639.0,0.00086559]
[1721700547493,2.30385717,67640.0,67639.0,0.00086559]
[1721700547694,2.35578532,67640.0,67639.0,0.00086559]
[1721700547897,2.65146832,67640.0,67639.0,0.00086559]
[1721700548094,2.65120309,67640.0,67639.0,0.00086559]
[1721700548665,2.65120132,67640.0,67639.0,0.00086559]
[1721700550431,2.86944009,67640.0,67639.0,0.00086559]
[1721700550923,2.71157185,67640.0,67639.0,0.00086559]
[1721700551131,2.63412922,67640.0,67639.0,0.00086559]
[1721700551328,2.86940902,67640.0,67639.0,0.00086559]
[1721700551825,2.81748087,67640.0,67639.0,0.00086559]
[1721700552234,2.86940902,67640.0,67639.0,0.00086559]
[1721700552528,2.81748087,67640.0,67639.0,0.00086559]
[1721700554256,2.3639607,67640.0,67639.0,0.00086559]
[1721700554507,2.81765142,67640.0,67639.0,0.00086559]
[1721700555738,2.86957957,67640.0,67639.0,0.00086559]
[1721700555911,2.81765142,67640.0,67639.0,0.00086559]
[1721700556119,2.66354148,67640.0,67639.0,0.00086559]
[1721700556320,2.52171845,67640.0,67639.0,0.00086559]
[1721700556944,2.41991433,67640.0,67639.0,0.00086559]
[1721700557275,2.36720482,67640.0,67639.0,0.00086559]
[1721700557483,2.36720477,67640.0,67639.0,0.00086559]
[1721700557677,2.3672023,67640.0,67639.0,0.00086559]
[1721700557885,2.5660931,67640.0,67639.0,0.00086559]
[1721700560393,2.56611229,67640.0,67639.0,0.00086559]
[1721700561602,2.35614964,67640.0,67639.0,0.00086559]
[1721700561804,2.27774964,67640.0,67639.0,0.00086559]
[1721700562746,2.27858964,67640.0,67639.0,0.00086559]
[1721700562949,2.07858964,67640.0,67639.0,0.00086559]
[1721700563150,2.27858964,67640.0,67639.0,0.00086559]
[1721700563360,2.04388664,67640.0,67639.0,0.00086559]
[1721700563510,2.07873656,67640.0,67639.0,0.00086559]
[1721700563715,2.20233656,67640.0,67639.0,0.00086559]
[1721700563937,2.27873656,67640.0,67639.0,0.00086559]
[1721700565220,2.42569921,67640.0,67639.0,0.00086559]
[1721700567691,2.56369921,67640.0,67639.0,0.00086559]
[1721700569605,2.56421873,67640.0,67639.0,0.00086559]
[1721700571454,2.60680232,67640.0,67639.0,0.00086559]
[1721700571861,2.56421873,67640.0,67639.0,0.00086559]
[1721700572236,2.60680262,67640.0,67639.0,0.00086559]
[1721700572441,2.90248562,67640.0,67639.0,0.00086559]
[1721700572636,2.64562453,67640.0,67639.0,0.00086559]
[1721700574632,2.94130753,67640.0,67639.0,0.00086559]
[1721700574838,2.64562453,67640.0,67639.0,0.00086559]
[1721700575629,2.94130753,67640.0,67639.0,0.00086559]
[1721700575831,2.64595515,67640.0,67639.0,0.00086559]
[1721700576273,2.64595521,67640.0,67639.0,0.00086559]
[1721700576884,2.94163821,67640.0,67639.0,0.00086559]
[1721700577976,2.88971006,67640.0,67639.0,0.00086559]
[1721700578180,2.94163821,67640.0,67639.0,0.00086559]
[1721700578623,0.00192815,67615.0,67614.0,0.002794]
[1721700578842,0.00192815,67615.0,67599.0,0.29586]
[1721700578843,0.14982615,67614.0,67602.0,0.147924]
[1721700579061,0.00192815,67602.0,67601.0,0.147926]
[1721700579282,0.12741508,67602.0,67601.0,0.295226]
[1721700579935,0.12741508,67602.0,67601.0,0.1473]
[1721700580775,0.26164951,67602.0,67601.0,0.1593]
[1721700580989,0.26064951,67602.0,67601.0,0.1473]
[1721700581256,0.12741508,67602.0,67601.0,0.1473]
[1721700581670,0.12841508,67602.0,67601.0,0.602079]
[1721700581901,0.02414549,67602.0,67601.0,0.602079]
[1721700582107,0.02314549,67602.0,67601.0,0.591079]
[1721700582337,0.02903711,67602.0,67601.0,0.1533]
[1721700582550,0.12987191,67602.0,67601.0,0.1613]
[1721700582970,0.27779591,67602.0,67601.0,0.1613]
[1721700583195,0.86949391,67602.0,67601.0,0.1613]
[1721700583401,0.57364491,67602.0,67601.0,0.1613]
[1721700584218,0.57264491,67602.0,67601.0,0.1553]
[1721700584431,0.57264491,67602.0,67601.0,0.1473]
[1721700584432,0.86749391,67602.0,67601.0,0.1473]
[1721700584900,0.86380011,67602.0,67601.0,0.1563]
[1721700585107,1.15964911,67602.0,67601.0,0.1563]
[1721700585281,0.86280011,67602.0,67601.0,0.1473]
[1721700585487,1.30929874,67602.0,67601.0,0.1533]
[1721700585699,1.01344974,67602.0,67601.0,0.1553]
[1721700586114,1.30929874,67602.0,67601.0,0.1533]
[1721700586315,1.01076276,67602.0,67601.0,0.1533]
[1721700586526,0.86380011,67602.0,67601.0,0.1533]
[1721700586938,0.86280011,67602.0,67601.0,0.1473]
[1721700587141,0.86480011,67602.0,67601.0,0.1613]
[1721700587757,0.76671272,67602.0,67601.0,0.1613]
[1721700587965,0.87150742,67602.0,67601.0,0.1613]
[1721700588382,0.87050742,67602.0,67601.0,0.1533]
[1721700588584,0.87150742,67602.0,67601.0,0.1603]
[1721700589347,1.00438108,67602.0,67601.0,0.1603]
[1721700590414,0.87150742,67602.0,67601.0,0.1603]
[1721700590616,1.00438108,67602.0,67601.0,0.1603]
[1721700590833,1.00438108,67602.0,67601.0,0.1602251]
[1721700591027,0.89956305,67602.0,67601.0,0.1602251]
[1721700591254,0.87132659,67602.0,67601.0,0.1602251]
[1721700593226,0.86939844,67602.0,67601.0,0.1602251]
[1721700593426,0.94481601,67602.0,67601.0,0.1602251]
[1721700594465,0.84020214,67602.0,67601.0,0.1602251]
[1721700594671,0.94493867,67602.0,67601.0,0.1602251]
[1721700595097,0.94493867,67602.0,67601.0,0.1611491]
[1721700597294,0.84020214,67602.0,67601.0,0.1611491]
[1721700597471,1.24071165,67602.0,67601.0,0.013924]
[1721700597669,1.0918253,67602.0,67601.0,0.013924]
[1721700597880,0.94486265,67602.0,67601.0,0.013924]
[1721700599438,1.44671165,67602.0,67601.0,0.013924]
[1721700599636,1.52751165,67602.0,67601.0,0.013924]
[1721700600034,1.69530308,67602.0,67601.0,0.013924]
[1721700600387,1.83450278,67602.0,67601.0,0.013924]
[1721700600667,1.98146543,67602.0,67601.0,0.013924]
[1721700601244,2.08146543,67602.0,67601.0,0.013924]
[1721700601609,2.37731443,67602.0,67601.0,0.013924]
[1721700601803,2.42001879,67602.0,67601.0,0.013924]
[1721700602279,2.41901879,67602.0,67601.0,0.006924]
[1721700602426,2.17226715,67602.0,67601.0,0.001924]
[1721700602967,2.41825604,67602.0,67601.0,0.000924]
[1721700603166,1.87544439,67602.0,67601.0,0.000924]
[1721700603506,1.48295061,67602.0,67601.0,0.003924]
[1721700604322,1.68295061,67602.0,67601.0,0.003924]
[1721700604738,1.48295061,67602.0,67601.0,0.003924]
[1721700605367,1.40655061,67602.0,67601.0,0.003924]
[1721700605568,1.48295061,67602.0,67601.0,0.003924]
[1721700607192,1.62991326,67602.0,67601.0,0.003924]
[1721700607392,1.83392437,67602.0,67601.0,0.003924]
[1721700609821,2.08303308,67602.0,67601.0,0.003924]
[1721700610272,2.24467337,67602.0,67601.0,0.003924]
[1721700610468,2.4937667,67602.0,67601.0,0.003924]
[1721700611064,2.4937667,67602.0,67601.0,0.002924]
[1721700611263,2.4997667,67602.0,67601.0,0.003924]
[1721700611510,2.49974675,67602.0,67601.0,0.003924]
[1721700611675,2.0069351,67602.0,67601.0,0.001924]
[1721700612012,2.0559351,67602.0,67601.0,0.001924]
[1721700612316,2.0619351,67602.0,67601.0,0.002924]
[1721700612677,2.0659351,67602.0,67601.0,0.002924]
[1721700612872,2.0549351,67602.0,67601.0,0.000924]
[1721700613296,2.3517841,67602.0,67601.0,0.000924]
[1721700613502,2.3467841,67602.0,67601.0,0.000924]
[1721700614373,2.49474675,67602.0,67601.0,0.000924]
[1721700614730,2.49386048,67602.0,67601.0,0.000924]
[1721700615065,2.49486048,67602.0,67601.0,0.000924]
[1721700615399,2.49386048,67602.0,67601.0,0.000924]
[1721700615653,2.49486048,67602.0,67601.0,0.000924]
[1721700616201,2.34789783,67602.0,67601.0,0.001924]
[1721700617251,2.34689783,67602.0,67601.0,0.001924]
[1721700617879,2.34739334,67602.0,67601.0,0.001924]
[1721700618266,2.3473928,67602.0,67601.0,0.001924]
[1721700618932,2.49435545,67602.0,67601.0,0.001924]
[1721700619096,2.64372856,67602.0,67601.0,0.001924]
[1721700619299,2.49435545,67602.0,67601.0,0.001924]
[1721700619952,2.64375437,67602.0,67601.0,0.001924]
[1721700620201,2.49435545,67602.0,67601.0,0.001924]
[1721700623955,2.49394111,67602.0,67601.0,0.001924]
[1721700624169,2.34693679,67602.0,67601.0,0.001924]
[1721700624950,0.45782815,67590.0,67589.0,0.000924]
[1721700625146,2.38597079,67590.0,67589.0,0.000924]
[1721700625383,2.66380101,67590.0,67589.0,0.000924]
[1721700625577,2.85503916,67590.0,67589.0,0.000924]
[1721700625727,3.15094016,67590.0,67589.0,0.000924]
[1721700625928,0.55192815,67582.0,67580.0,0.009163]
[1721700626173,2.26958701,67582.0,67580.0,0.009163]
[1721700626386,2.60979851,67582.0,67580.0,0.009163]
[1721700626817,2.78224509,67582.0,67580.0,0.009163]
[1721700627019,2.68171135,67582.0,67580.0,0.009163]
[1721700627423,2.63743585,67582.0,67580.0,0.009163]
[1721700627623,2.64143585,67582.0,67580.0,0.009163]
[1721700628232,2.63743585,67582.0,67580.0,0.009163]
[1721700628507,2.60409505,67582.0,67580.0,0.009163]
[1721700629235,2.60109505,67582.0,67580.0,0.009163]
[1721700629452,2.60109505,67582.0,67581.0,0.002924]
[1721700629658,2.59809505,67582.0,67581.0,0.002924]
[1721700629859,2.65098497,67582.0,67581.0,0.002924]
[1721700630067,2.65098497,67582.0,67581.0,0.003924]
[1721700630311,2.65098498,67582.0,67581.0,0.003924]
[1721700630532,2.65098498,67582.0,67581.0,0.002924]
[1721700631007,2.65398498,67582.0,67581.0,0.002924]
[1721700631242,2.65398498,67582.0,67581.0,0.000924]
[1721700631243,2.74790525,67582.0,67581.0,0.000924]
[1721700631476,2.89070525,67582.0,67581.0,0.000924]
[1721700631713,2.74121406,67582.0,67581.0,0.000924]
[1721700631943,2.78297152,67582.0,67581.0,0.000924]
[1721700632396,2.78797152,67582.0,67581.0,0.001924]
[1721700633029,2.93539642,67582.0,67581.0,0.001924]
[1721700633237,3.00267192,67582.0,67581.0,0.001924]
[1721700633442,2.99967192,67582.0,67581.0,0.001924]
[1721700633636,2.84770927,67582.0,67581.0,0.000924]
[1721700633858,2.85070927,67582.0,67581.0,0.000924]
[1721700634493,3.14664527,67582.0,67581.0,0.000924]
[1721700634902,3.14964527,67582.0,67581.0,0.000924]
[1721700635329,0.55192815,67573.0,67572.0,0.009163]
[1721700635528,1.40716431,67573.0,67572.0,0.009163]
[1721700635730,1.6425767,67573.0,67572.0,0.009163]
[1721700636240,2.82538211,67573.0,67572.0,0.009163]
[1721700636740,2.97576809,67573.0,67572.0,0.012163]
[1721700636936,3.02707525,67573.0,67572.0,0.009163]
[1721700637138,2.87768927,67573.0,67572.0,0.009163]
[1721700637331,3.02699751,67573.0,67572.0,0.009163]
[1721700637643,2.98272201,67573.0,67572.0,0.009163]
[1721700637827,2.93219126,67573.0,67572.0,0.009163]
[1721700638008,2.94219126,67573.0,67572.0,0.009163]
[1721700638215,2.76112556,67573.0,67572.0,0.009163]
[1721700638417,2.81588302,67573.0,67572.0,0.009163]
[1721700638628,2.95284567,67573.0,67572.0,0.009163]
[1721700638830,2.96284567,67573.0,67572.0,0.009163]
[1721700639008,2.95284567,67573.0,67572.0,0.009163]
[1721700639207,3.00361357,67573.0,67572.0,0.009163]
[1721700639439,3.25806154,67573.0,67572.0,0.009163]
[1721700639609,3.25796461,67573.0,67572.0,0.009163]
[1721700640016,3.26796461,67573.0,67572.0,0.009163]
[1721700640493,3.25796461,67573.0,67572.0,0.009163]
[1721700640690,3.26596461,67573.0,67572.0,0.009163]
[1721700642181,3.02061357,67573.0,67572.0,0.009163]
[1721700642379,3.26605804,67573.0,67572.0,0.009163]
[1721700642834,3.26605804,67573.0,67561.0,0.002]
[1721700642835,0.70782815,67562.0,67561.0,0.002]
[1721700643021,1.71172952,67562.0,67561.0,0.002]
[1721700643222,2.64155898,67562.0,67561.0,0.002]
[1721700644608,2.64155898,67562.0,67561.0,0.003]
[1721700644862,2.64333539,67562.0,67561.0,0.003]
[1721700645061,2.79029804,67562.0,67561.0,0.003]
[1721700645270,2.78712217,67562.0,67561.0,0.003]
[1721700645783,2.64015952,67562.0,67561.0,0.003]
[1721700645988,2.66315952,67562.0,67561.0,0.003]
[1721700646350,2.96018352,67562.0,67561.0,0.003]
[1721700646554,3.09728352,67562.0,67561.0,0.003]
[1721700646915,3.09728352,67562.0,67561.0,0.002]
[1721700647117,3.09728352,67562.0,67555.0,0.000924]
[1721700647118,2.07320315,67556.0,67555.0,0.000924]
[1721700647326,2.57758541,67556.0,67555.0,0.000924]
[1721700648150,2.62300649,67556.0,67555.0,0.000924]
[1721700648366,2.62300649,67556.0,67551.0,0.002]
[1721700648367,2.18030215,67552.0,67551.0,0.002]
[1721700648585,2.18030215,67552.0,67547.0,0.009163]
[1721700648586,0.75195515,67548.0,67547.0,0.009163]
[1721700648786,1.89948074,67548.0,67547.0,0.009163]
[1721700648989,2.19556574,67548.0,67547.0,0.009163]
[1721700649252,2.32046574,67548.0,67547.0,0.009163]
[1721700649451,2.43077971,67548.0,67547.0,0.009163]
[1721700649650,2.43377971,67548.0,67547.0,0.009163]
[1721700649892,2.32346574,67548.0,67547.0,0.009163]
[1721700650090,2.32046574,67548.0,67547.0,0.009163]
[1721700651126,2.32046574,67548.0,67547.0,0.086563]
[1721700651127,1.75063906,67548.0,67547.0,0.086563]
[1721700651309,1.8112995,67548.0,67547.0,0.148563]
[1721700651515,1.65040128,67548.0,67547.0,0.148563]
[1721700651731,1.65217769,67548.0,67547.0,0.148563]
[1721700652100,1.65517769,67548.0,67547.0,0.148563]
[1721700652369,1.65817769,67548.0,67547.0,0.148563]
[1721700652571,1.60517769,67548.0,67547.0,0.148563]
[1721700652925,1.40517769,67548.0,67547.0,0.148563]
[1721700653125,1.65517769,67548.0,67547.0,0.148563]
[1721700653335,1.60517769,67548.0,67547.0,0.148563]
[1721700654039,1.60217769,67548.0,67547.0,0.148563]
[1721700654402,1.60217769,67548.0,67547.0,0.149563]
[1721700654602,1.68993199,67548.0,67547.0,0.149563]
[1721700654803,1.60217769,67548.0,67547.0,0.148563]
[1721700657160,1.61097093,67548.0,67547.0,0.148563]
[1721700657363,1.63327004,67548.0,67547.0,0.148563]
[1721700657728,1.23179529,67548.0,67547.0,0.148563]
[1721700657929,1.33713645,67548.0,67547.0,0.148563]
[1721700658945,1.77017867,67548.0,67547.0,0.148563]
[1721700659510,1.95907205,67548.0,67547.0,0.009163]
[1721700659685,1.82017867,67548.0,67547.0,0.009163]
[1721700660406,1.76994515,67548.0,67547.0,0.009163]
[1721700660642,1.86994243,67548.0,67547.0,0.009163]
[1721700662265,1.91994243,67548.0,67547.0,0.009163]
[1721700662465,1.96087494,67548.0,67547.0,0.009163]
[1721700662671,1.7188128,67548.0,67547.0,0.009163]
[1721700662870,2.10153247,67548.0,67547.0,0.009163]
[1721700662997,2.39761747,67548.0,67547.0,0.009163]
[1721700663202,2.59095562,67548.0,67547.0,0.009163]
[1721700663900,2.61395562,67548.0,67547.0,0.009163]
[1721700664310,2.68014414,67548.0,67547.0,0.009163]
[1721700665782,2.70262384,67548.0,67547.0,0.009163]
[1721700665980,3.02077168,67548.0,67547.0,0.009163]
[1721700666184,2.91018837,67548.0,67547.0,0.009163]
[1721700667068,1.97773215,67542.0,67533.0,0.009163]
[1721700667282,2.63117448,67542.0,67533.0,0.009163]
[1721700667484,2.82881565,67542.0,67533.0,0.009163]
[1721700668111,2.47595629,67542.0,67533.0,0.009163]
[1721700668328,2.71562303,67542.0,67533.0,0.009163]
[1721700668536,2.71562303,67542.0,67541.0,0.003]
[1721700668537,2.76615378,67542.0,67541.0,0.003]
[1721700668712,2.52648704,67542.0,67541.0,0.003]
[1721700668912,2.766473,67542.0,67541.0,0.003]
[1721700669079,2.766473,67542.0,67541.0,0.002]
[1721700669489,2.768473,67542.0,67541.0,0.002]
[1721700669947,2.77024941,67542.0,67541.0,0.002]
[1721700670575,2.69875999,67542.0,67541.0,0.002]
[1721700670750,2.69085374,67542.0,67541.0,0.002]
[1721700670948,2.34858001,67542.0,67541.0,0.002]
[1721700671151,2.45905826,67542.0,67541.0,0.002]
[1721700671353,2.71105826,67542.0,67541.0,0.002]
[1721700671557,2.84855826,67542.0,67541.0,0.002]
[1721700671782,2.90604266,67542.0,67541.0,0.002]
[1721700671997,2.90404266,67542.0,67541.0,0.002]
[1721700672567,1.74434215,67534.0,67533.0,0.009163]
[1721700672769,2.5949606,67534.0,67533.0,0.009163]
[1721700672969,2.73388246,67534.0,67533.0,0.009163]
[1721700673350,2.64549135,67534.0,67533.0,0.009163]
[1721700673463,2.91787861,67534.0,67533.0,0.009163]
[1721700673669,2.95939928,67534.0,67533.0,0.009163]
[1721700674318,3.14505902,67534.0,67533.0,0.009163]
[1721700674520,3.19143452,67534.0,67533.0,0.009163]
[1721700674948,3.10738851,67534.0,67533.0,1e-08]
[1721700675189,3.14890918,67534.0,67533.0,1e-08]
[1721700675417,3.14890918,67534.0,67520.0,0.0001481]
[1721700675418,2.03202315,67522.0,67520.0,0.0001481]
[1721700675627,2.31941166,67522.0,67520.0,0.0001481]
[1721700675844,2.46093233,67522.0,67520.0,0.0001481]
[1721700676052,2.50730783,67522.0,67520.0,0.0001481]
[1721700677190,2.5456826,67522.0,67520.0,0.0001481]
[1721700677401,2.72053479,67522.0,67520.0,0.0001481]
[1721700677604,2.67968114,67522.0,67520.0,0.0001481]
[1721700677804,2.6549376,67522.0,67520.0,0.0001481]
[1721700678008,2.65671401,67522.0,67520.0,0.0001481]
[1721700678206,2.76715694,67522.0,67520.0,0.0001481]
[1721700678407,2.6986797,67522.0,67520.0,0.0001481]
[1721700678613,2.7016797,67522.0,67520.0,0.0001481]
[1721700678813,2.7076797,67522.0,67520.0,0.0001481]
[1721700679013,2.97573751,67522.0,67520.0,0.0001481]
[1721700679267,3.01611301,67522.0,67520.0,0.0001481]
[1721700679428,3.09881301,67522.0,67520.0,0.0001481]
[1721700679674,3.09881301,67522.0,67513.0,0.009163]
[1721700679675,0.84672815,67514.0,67513.0,0.009163]
[1721700679828,2.15867887,67514.0,67513.0,0.009163]
[1721700680025,3.00791541,67514.0,67513.0,0.009163]
[1721700680248,3.21675637,67514.0,67513.0,0.009163]
[1721700680428,3.32711005,67514.0,67513.0,0.009163]
[1721700680633,3.3776408,67514.0,67513.0,0.009163]
[1721700680832,3.37812662,67514.0,67513.0,0.009163]
[1721700681266,3.26777758,67514.0,67513.0,0.009163]
[1721700681467,3.35602624,67514.0,67513.0,0.009163]
[1721700681671,3.26777758,67514.0,67513.0,0.009163]
[1721700681873,3.39286126,67514.0,67513.0,0.009163]
[1721700682081,3.02403083,67514.0,67513.0,0.009163]
[1721700682278,2.93578924,67514.0,67513.0,0.009163]
[1721700682477,3.02401014,67514.0,67513.0,0.009163]
[1721700682656,2.94478924,67514.0,67513.0,0.009163]
[1721700683071,3.03301014,67514.0,67513.0,0.009163]
[1721700683274,3.08307662,67514.0,67513.0,0.009163]
[1721700683480,2.99485572,67514.0,67513.0,0.009163]
[1721700683681,3.00807964,67514.0,67513.0,0.009163]
[1721700684112,2.76549512,67514.0,67513.0,0.009163]
[1721700684308,3.09593635,67514.0,67513.0,0.009163]
[1721700684480,3.00770818,67514.0,67513.0,0.009163]
[1721700684683,2.765953,67514.0,67513.0,0.009163]
[1721700684915,2.72184553,67514.0,67513.0,0.009163]
[1721700685137,2.78800565,67514.0,67513.0,0.009163]
[1721700685378,2.72184553,67514.0,67513.0,0.009163]
[1721700685577,2.76595259,67514.0,67513.0,0.009163]
[1721700685772,2.86880818,67514.0,67513.0,0.009163]
[1721700686003,2.85580818,67514.0,67513.0,0.009163]
[1721700686396,2.88692211,67514.0,67513.0,0.009163]
[1721700686591,2.84373325,67514.0,67513.0,0.009163]
[1721700686820,2.6173479,67514.0,67513.0,0.009163]
[1721700686995,2.85249047,67514.0,67513.0,0.009163]
[1721700687196,2.89660493,67514.0,67513.0,0.009163]
[1721700687396,2.86749047,67514.0,67513.0,0.009163]
[1721700687771,2.91160507,67514.0,67513.0,0.009163]
[1721700687981,2.90060507,67514.0,67513.0,0.009163]
[1721700688151,2.90460507,67514.0,67513.0,0.009163]
[1721700688357,2.90460621,67514.0,67513.0,0.009163]
[1721700688562,2.86049047,67514.0,67513.0,0.009163]
[1721700689141,2.90460602,67514.0,67513.0,0.004163]
[1721700689337,2.86049047,67514.0,67513.0,0.004163]
[1721700689567,2.90460591,67514.0,67513.0,0.004163]
[1721700689890,2.6173479,67514.0,67513.0,0.004163]
[1721700690114,2.86002723,67514.0,67513.0,0.004163]
[1721700690523,2.91942923,67514.0,67513.0,0.004163]
[1721700690719,2.96354639,67514.0,67513.0,0.004163]
[1721700690922,2.91942923,67514.0,67513.0,0.004163]
[1721700691211,2.98560169,67514.0,67513.0,0.004163]
[1721700691579,2.91942923,67514.0,67513.0,0.004163]
[1721700692274,2.98560169,67514.0,67513.0,0.004163]
[1721700692537,2.91942923,67514.0,67513.0,0.004163]
[1721700693252,2.91957809,67514.0,67513.0,0.004163]
[1721700693398,2.6767499,67514.0,67513.0,0.004163]
[1721700693600,3.14604526,67514.0,67513.0,0.004163]
[1721700693824,3.44227926,67514.0,67513.0,0.004163]
[1721700694026,3.35403472,67514.0,67513.0,0.004163]
[1721700695196,3.39555539,67514.0,67513.0,0.004163]
[1721700695815,3.39639539,67514.0,67513.0,0.004163]
[1721700696221,1.64092115,67512.0,67511.0,0.002]
[1721700696425,2.03063505,67512.0,67511.0,0.002]
[1721700696631,2.21638769,67512.0,67511.0,0.002]
[1721700696832,2.51263069,67512.0,67511.0,0.002]
[1721700697530,2.40437805,67512.0,67511.0,0.002]
[1721700697677,2.5513407,67512.0,67511.0,0.002]
[1721700698056,2.66359334,67512.0,67511.0,0.002]
[1721700699258,2.3115887,67512.0,67511.0,0.002]
[1721700699533,2.66491568,67512.0,67511.0,0.002]
[1721700700296,2.36867268,67512.0,67511.0,0.002]
[1721700700651,2.25842801,67512.0,67511.0,0.002]
[1721700700936,2.23596536,67512.0,67511.0,0.002]